bitfinex-derivatives/quotes_ETHF0:USTF0_20251213
["timestamp","ask_amount","ask_price","bid_price","bid_amount"]
[1765662418385,2.61233054,3102.2,3102.1,0.89934]
[1765662420987,3.2078,3102.4,3102.3,1.49]
[1765662421186,3.2078,3102.4,3102.3,2.86297054]
[1765662423089,3.2078,3102.4,3102.3,8.86297054]
[1765662423984,0.00483177,3102.7,3102.6,1.65112]
[1765662424188,3.2078,3102.9,3102.8,1.65111]
[1765662424383,3.2078,3102.9,3102.8,2.86294054]
[1765662427889,0.00887086,3103.2,3103.1,1.49]
[1765662428193,1.43907086,3103.2,3103.1,1.49]
[1765662429093,1.8576,3103.0,3102.9,0.89931]
[1765662434305,1.8576,3103.0,3102.9,1.65111]
[1765662438111,1.1424,3103.0,3102.9,1.65111]
[1765662438600,0.715,3103.0,3102.9,1.65111]
[1765662439806,1.8576,3103.0,3102.9,0.16111]
[1765662440400,1.8576,3103.0,3102.9,0.89931]
[1765662441408,1.8576,3103.0,3102.9,0.16111]
[1765662441609,1.8576,3103.0,3102.9,0.89931]
[1765662443517,1.8576,3103.0,3102.9,1.65111]
[1765662443811,1.8576,3103.0,3102.9,0.89931]
[1765662445915,1.8576,3103.0,3102.9,1.61851]
[1765662449014,1.8576,3103.0,3102.9,0.89931]
[1765662449908,1.8576,3103.0,3102.9,0.16111]
[1765662450115,1.8576,3103.0,3102.5,0.00483177]
[1765662450116,1.4704,3102.6,3102.5,0.00483177]
[1765662450311,2.68160125,3102.6,3102.5,0.00483177]
[1765662450713,2.68160125,3102.6,3102.5,0.16596177]
[1765662451009,1.4704,3102.6,3102.5,0.87296177]
[1765662452718,1.4704,3102.6,3102.5,1.59216177]
[1765662454119,1.4704,3102.6,3102.5,0.87296177]
[1765662456528,2.68160125,3102.6,3102.5,0.87296177]
[1765662456830,2.68160125,3102.6,3102.0,3.21084913]
[1765662456831,1.4704,3102.1,3102.0,3.21084913]
[1765662457028,2.68160125,3102.1,3102.0,0.00304913]
[1765662465028,1.4704,3102.1,3102.0,0.00304913]
[1765662465234,1.4704,3102.1,3102.0,2.80160038]
[1765662465433,1.4704,3102.1,3102.0,1.59039913]
[1765662466332,1.4704,3102.1,3102.0,0.16419913]
[1765662466530,2.68160125,3102.1,3102.0,0.16419913]
[1765662469837,0.7089,3101.2,3101.1,1.4262]
[1765662470133,1.4704,3101.2,3101.1,1.4262]
[1765662470831,1.4704,3101.2,3101.1,1.430302]
[1765662471237,1.4704,3101.2,3101.1,0.872302]
[1765662471736,1.4704,3101.2,3101.1,1.591502]
[1765662472129,1.91883177,3101.5,3101.4,1.58738]
[1765662472535,1.91883177,3101.5,3101.4,0.86818]
[1765662474536,0.00483177,3101.5,3101.4,1.58738]
[1765662474742,0.00483177,3101.5,3101.4,2.79993943]
[1765662475038,1.92503177,3101.5,3101.4,0.16118]
[1765662475645,1.92503177,3101.5,3101.4,0.90708]
[1765662476942,1.92503177,3101.5,3101.4,1.61078]
[1765662479642,1.47523177,3101.5,3101.4,1.61078]
[1765662480037,0.76633177,3101.5,3101.4,1.61078]
[1765662480344,1.46453177,3101.5,3101.4,1.61078]
[1765662480731,0.00483177,3101.5,3101.4,1.61078]
[1765662481842,0.70553177,3101.5,3101.4,1.61078]
[1765662482040,1.40373177,3101.5,3101.4,0.90708]
[1765662482443,1.40373177,3101.5,3101.4,1.61078]
[1765662483641,0.70553177,3101.5,3101.4,1.61078]
[1765662484949,0.00483177,3101.5,3101.4,1.61078]
[1765662485634,1.8425,3102.5,3102.4,1.4496]
[1765662485838,1.8425,3102.5,3102.4,0.90703]
[1765662485839,5.0503,3102.5,3102.4,0.90703]
[1765662487135,5.0503,3102.5,3102.4,0.16113]
[1765662487945,5.0503,3102.5,3102.4,0.90703]
[1765662488346,5.0503,3102.5,3102.4,1.61073]
[1765662492047,1.8425,3102.5,3102.4,1.61073]
[1765662492348,1.3989,3102.5,3102.4,1.61073]
[1765662493048,0.7007,3102.5,3102.4,1.61073]
[1765662493547,1.3989,3102.5,3102.4,1.61073]
[1765662494341,1.8487,3102.5,3102.4,0.16113]
[1765662494849,1.8487,3102.5,3102.4,0.90703]
[1765662495446,1.8487,3102.5,3102.4,1.61073]
[1765662495651,0.7007,3102.5,3102.4,1.61073]
[1765662495947,1.3989,3102.5,3102.4,1.61073]
[1765662496744,1.8487,3102.5,3102.4,0.16113]
[1765662496936,1.8487,3102.5,3102.4,0.90703]
[1765662497145,1.8487,3102.5,3102.4,1.61073]
[1765662504353,1.3989,3102.5,3102.4,1.61073]
[1765662504850,1.21728884,3102.8,3102.6,0.16112]
[1765662505042,2.70198884,3102.8,3102.7,0.7732]
[1765662505553,1.4913,3102.7,3102.6,0.86662]
[1765662508259,1.4913,3102.7,3102.6,0.16112]
[1765662514568,1.4913,3102.2,3102.1,3.21263177]
[1765662515763,2.70340114,3102.2,3102.1,3.21263177]
[1765662516571,2.70340114,3102.2,3102.1,0.00483177]
[1765662517065,1.4913,3102.2,3102.1,0.00483177]
[1765662518172,1.4913,3102.1,3102.0,0.16115]
[1765662518468,2.70340114,3102.1,3102.0,0.16115]
[1765662519871,1.4913,3102.1,3102.0,0.16115]
[1765662521271,2.70340114,3102.1,3102.0,0.16115]
[1765662529865,1.4913,3101.4,3101.3,3.2078]
[1765662530067,1.4913,3101.4,3101.3,3.9133]
[1765662530475,1.4913,3101.4,3101.3,4.6649]
[1765662530672,3.2078,3101.8,3101.6,0.91277]
[1765662530869,4.6991,3101.8,3101.7,1.61827]
[1765662540670,3.9561,3101.8,3101.7,1.61827]
[1765662541073,4.7259,3101.8,3101.7,1.61827]
[1765662541577,3.9561,3101.8,3101.7,1.61827]
[1765662541979,4.7259,3101.8,3101.7,1.61827]
[1765662542775,4.7259,3101.8,3101.7,0.86667]
[1765662542983,4.7259,3101.8,3101.7,0.87527]
[1765662543275,4.7259,3101.8,3101.7,1.61567]
[1765662544075,3.9561,3101.8,3101.7,1.61567]
[1765662544280,4.7259,3101.8,3101.7,1.61567]
[1765662545677,3.9561,3101.8,3101.7,1.61567]
[1765662545878,1.7952,3102.0,3101.9,1.61566]
[1765662548082,1.4908,3102.0,3101.9,1.61566]
[1765662548378,4.6986,3102.2,3102.1,0.16115]
[1765662548583,5.91083502,3102.2,3102.1,0.16115]
[1765662551492,5.91066996,3102.2,3102.1,0.16115]
[1765662555691,4.6986,3102.2,3102.1,0.87525]
[1765662555997,4.6986,3102.2,3102.1,1.61565]
[1765662560394,5.91066996,3102.2,3102.1,0.16115]
[1765662564809,5.91066996,3102.2,3102.1,0.87525]
[1765662565000,5.91066996,3102.2,3102.1,0.16115]
[1765662566809,4.6986,3102.2,3102.1,0.92235]
[1765662567809,4.6986,3102.2,3102.1,1.64145]
[1765662569008,4.6986,3102.2,3102.1,0.92235]
[1765662569210,4.6986,3102.2,3102.1,0.16115]
[1765662577717,4.6986,3102.2,3102.1,0.92235]
[1765662578024,4.6986,3102.2,3102.1,1.64145]
[1765662578321,4.6986,3102.2,3102.1,0.92235]
[1765662581525,4.6986,3102.2,3102.1,0.16115]
[1765662582422,5.91066996,3102.2,3102.1,0.16115]
[1765662586134,5.91066996,3102.2,3102.1,0.92235]
[1765662586437,4.6986,3102.2,3102.1,1.64145]
[1765662588542,4.6986,3102.2,3102.1,0.92235]
[1765662589242,4.6986,3102.2,3102.1,0.16115]
[1765662593840,5.91073707,3102.2,3102.1,0.16115]
[1765662595552,5.91073707,3102.2,3102.1,0.92235]
[1765662595748,5.91073707,3102.2,3102.1,0.16115]
[1765662602754,5.91073707,3102.2,3101.3,3.2078]
[1765662602755,1.4354,3101.4,3101.3,3.36899]
[1765662603153,1.4354,3101.4,3101.3,4.13679]
[1765662604054,1.4354,3101.4,3101.3,3.36899]
[1765662606464,1.4354,3101.4,3101.3,4.13679]
[1765662612872,1.4354,3101.4,3101.3,4.90089]
[1765662615878,2.64753707,3101.7,3101.6,1.69307]
[1765662617381,2.64753707,3101.7,3101.6,0.92897]
[1765662619977,2.64753707,3101.7,3101.6,1.69307]
[1765662623582,1.4354,3101.7,3101.6,1.69307]
[1765662624181,1.4354,3101.7,3101.6,0.92897]
[1765662626084,1.4354,3101.7,3101.6,0.16117]
[1765662632784,1.4354,3101.7,3101.6,0.92917]
[1765662633286,1.4354,3101.7,3101.6,0.16117]
[1765662645101,4.6432,3101.7,3101.6,0.16117]
[1765662645598,4.6432,3101.7,3101.6,0.92917]
[1765662645799,4.6432,3101.7,3101.6,0.16117]
[1765662647401,5.85560218,3101.7,3101.6,0.92917]
[1765662648803,5.85560218,3101.7,3101.6,1.67347]
[1765662649004,5.85560218,3101.7,3101.6,0.92917]
[1765662649606,5.85560218,3101.7,3101.6,0.16117]
[1765662651095,5.85560218,3101.7,3101.6,1.67347]
[1765662651498,5.85560218,3101.7,3101.6,0.92917]
[1765662653098,5.85560218,3101.7,3101.6,0.16117]
[1765662655207,5.85560218,3101.7,3101.6,0.92917]
[1765662655413,5.85560218,3101.7,3101.6,0.16117]
[1765662655908,5.85580777,3101.7,3101.6,0.16117]
[1765662659616,5.85579548,3101.7,3101.6,0.16117]
[1765662665930,4.6432,3101.7,3101.6,0.87987]
[1765662666128,4.6432,3101.7,3101.6,1.59557]
[1765662666725,4.6432,3101.7,3101.6,0.87987]
[1765662670232,4.6432,3101.7,3101.6,0.16117]
[1765662671032,4.6432,3101.7,3101.6,0.87987]
[1765662673339,4.6432,3101.7,3101.6,1.59557]
[1765662673630,4.6432,3101.7,3101.6,0.87987]
[1765662673833,4.6432,3101.7,3101.6,0.16117]
[1765662674135,4.6432,3101.7,3101.6,0.87987]
[1765662683038,4.6432,3101.7,3101.6,1.59557]
[1765662683542,4.6432,3101.7,3101.6,0.87987]
[1765662683836,4.6432,3101.7,3101.6,1.59557]
[1765662686533,4.6432,3101.7,3101.6,0.87987]
[1765662687141,4.6432,3101.7,3101.6,0.16117]
[1765662687844,4.6432,3101.7,3101.6,0.88577]
[1765662688745,4.6432,3101.7,3101.6,0.16117]
[1765662690843,4.6432,3101.7,3101.6,0.88577]
[1765662691243,4.6432,3101.7,3101.6,1.60247]
[1765662691451,3.2078,3101.7,3101.6,1.60247]
[1765662691743,4.6777,3101.7,3101.6,1.60247]
[1765662693241,3.9259,3101.7,3101.6,1.60247]
[1765662693838,4.6777,3101.7,3101.6,1.60247]
[1765662696046,3.9259,3101.7,3101.6,1.60247]
[1765662696742,3.2078,3101.7,3101.6,2.81470801]
[1765662697047,0.7181,3102.0,3101.9,1.60245]
[1765662697248,1.4699,3102.0,3101.9,1.60245]
[1765662698942,0.7181,3102.0,3101.9,1.60245]
[1765662699349,1.4699,3102.0,3101.9,1.60245]
[1765662699752,3.2078,3102.2,3102.1,1.4413]
[1765662699947,3.9259,3102.2,3102.1,1.4413]
[1765662700343,4.6777,3102.2,3102.1,1.4413]
[1765662700540,4.6777,3102.2,3102.1,1.60245]
[1765662702450,3.9259,3102.2,3102.1,1.60245]
[1765662703146,3.9259,3102.2,3102.1,2.81468801]
[1765662703858,4.6777,3102.2,3102.1,1.60245]
[1765662714364,4.6777,3102.2,3102.1,2.81468801]
[1765662714569,1.9175,3102.5,3102.4,0.88573]
[1765662714861,1.4699,3102.5,3102.4,2.81466801]
[1765662716569,1.4699,3102.5,3102.4,1.60243]
[1765662716769,1.4699,3102.5,3102.4,2.81466801]
[1765662717863,1.4699,3102.5,3102.4,1.60243]
[1765662719067,1.4699,3102.5,3102.4,0.88573]
[1765662719271,1.8991,3102.5,3102.4,0.88573]
[1765662719672,1.8991,3102.5,3102.4,0.16113]
[1765662741096,1.8991,3102.5,3102.4,1.62163]
[1765662741398,1.8991,3102.5,3102.4,0.88363]
[1765662744097,1.8991,3102.5,3102.4,1.62163]
[1765662745098,1.8991,3102.5,3102.4,0.16113]
[1765662753803,1.8991,3102.5,3102.4,0.89013]
[1765662754105,1.8991,3102.5,3102.4,1.60893]
[1765662756400,1.8991,3102.5,3102.4,0.89013]
[1765662756608,3.11086494,3102.5,3102.4,0.16113]
[1765662756907,1.8991,3102.5,3102.4,0.16113]
[1765662760713,1.8991,3102.5,3102.4,0.89013]
[1765662762013,1.8991,3102.5,3102.4,1.60893]
[1765662764011,1.4699,3102.5,3102.4,1.60893]
[1765662764208,0.7181,3102.5,3102.4,1.60893]
[1765662765215,1.4537,3102.5,3102.4,1.60893]
[1765662769920,1.8857,3102.5,3102.4,0.89013]
[1765662770221,1.8857,3102.5,3102.4,0.16113]
[1765662773419,1.8857,3102.5,3102.4,0.89013]
[1765662773621,0.7181,3102.5,3102.4,1.60893]
[1765662773826,1.4537,3102.5,3102.4,1.60893]
[1765662774120,0.00483177,3102.8,3102.7,1.60892]
[1765662774325,3.2078,3103.1,3103.0,1.8844]
[1765662774519,4.6748,3103.1,3103.0,3.09604954]
[1765662775523,4.6748,3103.1,3103.0,3.25714954]
[1765662776313,5.88644954,3103.1,3103.0,0.1611]
[1765662777124,2.66504954,3102.8,3102.7,0.00483177]
[1765662777919,2.66494709,3102.8,3102.7,0.00483177]
[1765662786937,1.6731,3102.0,3101.9,3.2078]
[1765662787136,1.4534,3101.9,3101.8,0.16116]
[1765662787435,2.66494709,3101.9,3101.8,0.16116]
[1765662787932,1.4534,3101.2,3101.1,0.746602]
[1765662788131,1.4534,3101.2,3101.1,0.907802]
[1765662789134,2.66494709,3101.2,3101.1,0.165302]
[1765662789639,1.4534,3101.2,3101.1,0.165302]
[1765662792034,2.66494709,3101.2,3101.1,0.165302]
[1765662792938,5.87274709,3101.2,3101.1,0.165302]
[1765662793132,5.87274709,3101.2,3101.1,1e-08]
[1765662793331,7.08429418,3101.2,3101.1,1e-08]
[1765662793634,5.87274709,3101.2,3101.1,1e-08]
[1765662793839,1.8893,3100.5,3100.4,0.90373]
[1765662794733,1.89217488,3100.5,3100.4,0.90668977]
[1765662795738,1.89217488,3100.5,3100.4,0.16418977]
[1765662796735,1.89217488,3100.5,3100.4,0.90668977]
[1765662796940,1.89217488,3100.5,3100.4,1.60498977]
[1765662798534,0.00287488,3100.5,3100.4,1.60498977]
[1765662804541,0.00287488,3100.5,3100.4,2.81792781]
[1765662806247,1.45537488,3100.5,3100.4,2.81792781]
[1765662806444,1.90347488,3100.5,3100.4,0.90668977]
[1765662806741,1.90347488,3100.5,3100.4,0.16418977]
[1765662811149,0.45097488,3100.5,3099.8,1.21293804]
[1765662811363,1.4845,3100.1,3100.0,1.63585]
[1765662812156,1.4845,3100.1,3100.0,1.63866461]
[1765662812450,1.4845,3100.1,3100.0,0.93396461]
[1765662813156,1.4845,3100.1,3100.0,1.63866461]
[1765662814857,1.4845,3100.1,3100.0,2.09406461]
[1765662815450,0.7319,3100.1,3100.0,2.09406461]
[1765662816060,0.7319,3100.1,3100.0,3.30700265]
[1765662816558,1.4845,3100.1,3100.0,3.30700265]
[1765662816960,1.4845,3100.1,3100.0,0.16406461]
[1765662817154,1.4845,3100.1,3100.0,1.63866461]
[1765662817662,1.4845,3100.1,3100.0,0.16406461]
[1765662821559,1.4845,3100.1,3100.0,0.93396461]
[1765662823262,1.4845,3100.1,3100.0,0.16406461]
[1765662830962,1.4845,3100.1,3100.0,1.63866461]
[1765662831163,3.2078,3100.4,3100.3,1.63584]
[1765662831468,0.00287488,3100.5,3100.4,1.63584]
[1765662839881,0.00287488,3100.5,3100.4,2.8485499]
[1765662840276,0.00287488,3100.5,3100.4,2.84854769]
[1765662841784,0.00287488,3100.5,3100.4,1.63584]
[1765662848786,0.00483177,3101.5,3101.4,1.61168]
[1765662848990,4.6887,3102.0,3101.9,1.4505]
[1765662849192,4.6887,3102.0,3101.9,1.61166]
[1765662849490,3.9292,3102.0,3101.9,1.61166]
[1765662849685,0.72384868,3102.0,3101.9,1.61166]
[1765662849988,0.00244868,3102.0,3101.9,1.61166]
[1765662850188,0.00244868,3102.0,3101.9,2.82436769]
[1765662851084,0.72384868,3102.0,3101.9,2.82436769]
[1765662851693,0.00244868,3102.0,3101.9,2.82436769]
[1765662854892,0.00244868,3102.0,3101.9,1.61166]
[1765662857802,0.7214,3102.6,3102.5,1.8985]
[1765662858692,0.72517785,3102.6,3102.5,1.90138466]
[1765662859499,0.72517785,3102.6,3102.5,2.06251466]
[1765662861601,1.20254033,3104.1,3102.5,2.06251466]
[1765662861602,3.2078,3103.4,3103.2,1.4505]
[1765662861800,3.9292,3103.4,3103.3,1.61158]
[1765662862003,4.6887,3103.8,3103.7,1.4505]
[1765662862909,4.69262629,3103.8,3103.7,0.7223]
[1765662864408,4.69262629,3103.8,3103.7,1.4505]
[1765662865300,3.2078,3104.7,3104.2,0.16103]
[1765662865516,0.7254,3104.3,3104.2,2.77973769]
[1765662865811,4.6893,3104.3,3104.2,0.16103]
[1765662866011,4.6893,3104.3,3104.2,0.86273]
[1765662866410,4.6924143,3104.3,3104.2,0.86273]
[1765662868408,4.6924143,3104.3,3104.2,1.56703]
[1765662868815,4.6934143,3104.3,3104.2,0.16103]
[1765662869313,4.6934143,3104.3,3104.2,0.90013]
[1765662869507,0.7285143,3104.3,3104.2,2.86883769]
[1765662869714,0.0031143,3104.3,3104.2,2.86883769]
[1765662870104,1.1791,3105.0,3104.9,0.7391]
[1765662870299,1.5011,3105.0,3104.9,1.4951]
[1765662871014,1.50407886,3105.0,3104.9,1.49749093]
[1765662871212,1.50407886,3105.0,3104.9,1.65849093]
[1765662871414,0.00297886,3105.0,3104.9,1.65849093]
[1765662871613,0.00297886,3105.0,3104.9,4.86629093]
[1765662874105,0.00297886,3105.0,3104.9,0.16339093]
[1765662874106,3.12608655,3105.0,3104.9,0.16339093]
[1765662874413,3.12608655,3105.0,3104.9,0.00239093]
[1765662874618,1.5011,3104.1,3104.0,1.4951]
[1765662874812,1.5011,3104.1,3104.0,4.7029]
[1765662875225,1.5011,3104.1,3104.0,3.36885]
[1765662875729,4.7089,3104.4,3104.3,1.4951]
[1765662876234,4.7089,3104.4,3104.3,0.7391]
[1765662876533,0.744,3104.1,3104.0,5.31022896]
[1765662877029,1.5011,3104.1,3104.0,3.37132896]
[1765662878635,1.5011,3104.1,3104.0,0.16352896]
[1765662881746,1.5011,3104.1,3104.0,1.65862896]
[1765662882637,1.5011,3104.1,3104.0,2.10242896]
[1765662884144,4.7089,3104.4,3104.3,1.4951]
[1765662886339,0.744,3104.4,3104.3,1.65613]
[1765662886546,5.91918725,3104.8,3104.7,0.7391]
[1765662886738,1.5011,3104.5,3104.4,1.65613]
[1765662888142,0.744,3104.5,3104.4,1.65613]
[1765662888338,5.91918725,3104.8,3104.7,1.4951]
[1765662888541,4.7089,3104.8,3104.7,1.4951]
[1765662888940,4.7089,3104.8,3104.7,1.65611]
[1765662891447,0.74697886,3105.0,3104.9,1.6561]
[1765662892838,1.50407886,3105.0,3104.9,1.6561]
[1765662893034,1.50407886,3105.0,3104.9,0.161]
[1765662893035,1.91097886,3105.0,3104.9,0.161]
[1765662893744,1.91097886,3105.0,3104.9,1.6561]
[1765662893942,1.50407886,3105.0,3104.9,1.6561]
[1765662894342,3.21263177,3105.3,3105.2,1.65609]
[1765662894544,3.95663177,3105.3,3105.2,1.65609]
[1765662895048,0.74883177,3105.3,3105.2,1.65609]
[1765662895245,0.75256048,3105.3,3105.2,1.65609]
[1765662897555,1.49416048,3105.3,3105.2,0.16099]
[1765662898954,4.70196048,3105.3,3105.2,0.16099]
[1765662901661,1.4964,3104.6,3104.5,0.16102]
[1765662905164,1.4964,3104.1,3104.0,0.00247896]
[1765662908566,1.4964,3104.1,3104.0,0.72487896]
[1765662909466,1.4964,3104.1,3104.0,1.46517896]
[1765662911961,2.70676766,3104.1,3104.0,1.46517896]
[1765662912161,2.70688287,3104.1,3104.0,1.46517896]
[1765662912370,2.70688287,3104.1,3104.0,0.72487896]
[1765662915274,1.4964,3104.1,3104.0,0.72487896]
[1765662915473,1.4964,3104.1,3104.0,1.46517896]
[1765662915677,0.7548,3104.1,3104.0,1.89967896]
[1765662915976,1.4964,3104.1,3104.0,1.89967896]
[1765662916982,1.4964,3104.1,3104.0,1.46517896]
[1765662917179,1.4964,3104.1,3104.0,0.00247896]
[1765662920385,2.70688287,3104.1,3104.0,0.00247896]
[1765662922189,2.70688287,3104.1,3104.0,0.72487896]
[1765662922991,2.70688287,3104.1,3104.0,1.46517896]
[1765662923281,2.70688287,3104.1,3104.0,0.72487896]
[1765662925589,2.70688287,3104.1,3104.0,0.00247896]
[1765662925889,2.70688287,3104.1,3104.0,0.73687896]
[1765662926588,2.70688287,3104.1,3104.0,0.00247896]
[1765662940395,1.4964,3104.1,3104.0,1.49497896]
[1765662940702,1.4964,3104.1,3104.0,0.73687896]
[1765662941098,2.70688287,3104.1,3104.0,0.73687896]
[1765662941691,0.7548,3104.1,3104.0,1.49497896]
[1765662942002,4.7391,3104.3,3104.2,1.4925]
[1765662942401,4.7391,3104.3,3104.2,0.7344]
[1765662942602,1.5313,3104.1,3104.0,0.00247896]
[1765662943104,2.74178287,3104.1,3104.0,0.00247896]
[1765662943401,1.5313,3104.1,3104.0,1.92657896]
[1765662943595,0.7661,3104.1,3104.0,1.92657896]
[1765662943793,3.2078,3104.3,3104.2,1.4925]
[1765662943794,4.7391,3104.3,3104.2,1.4925]
[1765662943996,3.9739,3104.3,3104.2,1.4925]
[1765662944599,4.7391,3104.3,3104.2,1.4925]
[1765662945600,4.7391,3104.3,3104.2,1.65354]
[1765662948005,3.9739,3104.3,3104.2,1.65354]
[1765662948307,4.7391,3104.3,3104.2,1.65354]
[1765662948707,3.9739,3104.3,3104.2,1.65354]
[1765662950908,4.7391,3104.3,3104.2,1.65354]
[1765662958903,4.7391,3104.3,3104.2,0.89544]
[1765662960208,4.7391,3104.3,3104.2,1.63984]
[1765662961112,4.7391,3104.3,3104.2,0.89544]
[1765662961612,3.9069,3104.3,3104.2,2.85004372]
[1765662961806,1.4569,3104.5,3104.4,1.67333]
[1765662967117,1.8763,3104.5,3104.4,0.16103]
[1765662967522,1.8763,3104.5,3104.4,1.67333]
[1765662968817,4.6647,3104.7,3104.6,1.5123]
[1765662969421,1.4569,3104.6,3104.5,0.92892]
[1765662971018,1.4569,3104.6,3104.5,0.16102]
[1765662976423,1.4569,3104.6,3104.5,0.92892]
[1765662978020,1.4569,3104.6,3104.5,1.67332]
[1765662979526,1.4569,3104.6,3104.5,2.09752]
[1765662979826,1.4569,3104.6,3104.5,0.16102]
[1765662980026,1.4569,3104.6,3104.5,0.92892]
[1765662980826,4.6647,3104.6,3104.5,1.67332]
[1765662983827,3.2078,3104.6,3104.5,2.11932]
[1765662984028,3.9265,3104.6,3104.5,2.11932]
[1765662984431,4.6901,3104.6,3104.5,2.11932]
[1765662984925,3.2078,3104.6,3104.5,2.11932]
[1765662985522,3.9265,3104.6,3104.5,2.11932]
[1765662985726,5.1631,3105.0,3104.9,1.4622]
[1765662986528,5.1631,3105.0,3104.9,1.6232]
[1765662986738,3.9627,3105.0,3104.9,1.6232]
[1765662988131,4.7293,3105.0,3104.9,1.6232]
[1765662988326,1.5215,3105.0,3104.9,1.6232]
[1765662989631,1.53006048,3105.3,3105.2,1.4622]
[1765662990032,1.53006048,3105.3,3105.2,0.7375]
[1765662990530,1.53006048,3105.3,3105.2,1.62319]
[1765662991037,1.53006048,3105.3,3105.2,0.89849]
[1765662991228,1.53006048,3105.3,3105.2,1.62319]
[1765662991428,0.00856048,3105.3,3105.2,1.62319]
[1765662993033,4.7293,3105.8,3105.7,1.62316]
[1765662994033,4.73312012,3105.8,3105.7,1.62316]
[1765662994838,1.52532012,3105.8,3105.7,1.62316]
[1765662995143,0.75872012,3105.8,3105.7,1.62316]
[1765662995432,0.00382012,3105.8,3105.7,1.62316]
[1765662995637,0.75872012,3105.8,3105.7,1.62316]
[1765662996032,0.75872012,3105.8,3105.7,2.8331192]
[1765662996330,3.2078,3106.6,3106.3,0.89843]
[1765662996538,4.7293,3106.6,3106.5,1.4622]
[1765662996737,4.7293,3106.6,3106.5,1.9081]
[1765662997237,0.75758051,3106.6,3106.5,2.07314623]
[1765662997931,1.5215,3107.5,3107.4,0.7375]
[1765662998132,1.5215,3107.3,3107.2,1.62308]
[1765662998441,1.5215,3107.3,3107.2,0.89838]
[1765662998735,1.52397517,3107.3,3107.2,0.89838]
[1765662999040,1.52397517,3107.3,3107.2,0.16088]
[1765662999630,1.2099592,3108.1,3107.5,0.4459]
[1765662999830,1.5215,3107.8,3107.7,4.67]
[1765663000032,1.5215,3107.8,3107.7,3.9453]
[1765663000438,4.7293,3108.3,3108.2,0.7375]
[1765663000638,0.75828176,3108.3,3108.2,1.4622]
[1765663000837,0.00338176,3108.3,3108.2,1.4622]
[1765663001036,1.5215,3108.2,3108.1,3.2078]
[1765663002329,1.5215,3108.2,3108.1,3.9453]
[1765663003439,0.00338176,3108.3,3108.2,1.4622]
[1765663003641,0.75828176,3108.3,3108.2,2.6721592]
[1765663004236,0.00338176,3108.3,3108.2,2.6721592]
[1765663004544,0.00818666,3109.0,3108.9,1.4622]
[1765663004842,0.00818666,3109.0,3108.9,4.67]
[1765663005038,1.52968666,3109.0,3108.9,5.8799592]
[1765663005246,1.52968666,3109.0,3108.9,4.83079]
[1765663005438,1.53315218,3109.0,3108.9,4.83356355]
[1765663006847,0.76655218,3109.0,3108.9,4.83356355]
[1765663007049,1.53315218,3109.0,3108.9,4.83356355]
[1765663007748,0.01165218,3109.0,3108.9,4.83356355]
[1765663007943,1.5215,3109.7,3109.6,1.4622]
[1765663008444,1.5215,3109.7,3109.6,0.7375]
[1765663008645,1.5215,3109.7,3109.6,1.4622]
[1765663008844,0.75796269,3109.7,3109.6,2.8329192]
[1765663009742,0.00306269,3109.7,3109.6,2.8329192]
[1765663010442,0.00306269,3109.7,3109.6,1.62296]
[1765663010649,0.00306269,3109.7,3109.6,2.8329192]
[1765663011842,1.5215,3110.4,3110.3,1.62292]
[1765663012340,0.7549,3110.4,3110.3,1.62292]
[1765663012542,1.5215,3110.4,3110.3,1.62292]
[1765663012742,0.7549,3110.4,3110.3,1.62292]
[1765663012942,0.75766505,3110.4,3110.3,1.62292]
[1765663014242,2.0948981,3111.0,3110.9,1.4622]
[1765663014445,1.5215,3111.4,3111.3,1.4622]
[1765663014641,1.5215,3111.4,3111.3,4.67]
[1765663014850,0.7549,3111.4,3111.3,4.67]
[1765663015242,0.00366998,3111.4,3111.3,4.67362201]
[1765663015444,0.00366998,3111.4,3111.3,4.83429201]
[1765663015949,0.83412306,3112.3,3112.2,1.66412]
[1765663016144,3.33092306,3112.3,3111.5,5.1647]
[1765663016349,1.4259,3112.1,3111.5,3.6612]
[1765663016553,0.711,3111.6,3111.5,5.1647]
[1765663016751,1.4259,3111.6,3111.5,3.2078]
[1765663017045,1.4259,3111.6,3111.3,0.00362201]
[1765663017046,1.4259,3111.4,3111.3,0.00362201]
[1765663017850,7.4259,3111.4,3111.3,0.00362201]
[1765663018947,7.4259,3111.4,3111.0,3.21262369]
[1765663018948,1.4259,3111.1,3111.0,3.21262369]
[1765663020040,1.4259,3111.1,3111.0,3.21503678]
[1765663022143,1.4259,3111.1,3111.0,0.00723678]
[1765663022447,0.00313516,3111.6,3111.0,2.12482678]
[1765663023854,0.711,3111.1,3111.0,2.12482678]
[1765663026344,0.00313516,3111.6,3111.0,2.12482678]
[1765663026548,2.34786436,3111.5,3111.4,0.7429]
[1765663027847,1.4259,3111.1,3111.0,2.12482678]
[1765663028052,2.34786436,3111.1,3111.0,2.12482678]
[1765663028251,1.4259,3111.1,3111.0,2.12482678]
[1765663028451,2.34929688,3111.1,3111.0,2.12482678]
[1765663029162,2.34930062,3111.1,3111.0,2.12482678]
[1765663032958,0.92340062,3111.1,3111.0,2.12482678]
[1765663033163,0.00313516,3111.6,3111.5,2.11756]
[1765663033456,0.91616969,3111.6,3111.5,2.11756]
[1765663034255,2.34206969,3111.6,3111.5,2.11756]
[1765663034858,2.34206969,3111.6,3111.5,0.16066]
[1765663035661,0.91616969,3111.6,3111.5,2.11756]
[1765663036161,1.62716969,3111.6,3111.5,2.11756]
[1765663036761,2.34206969,3111.6,3111.5,2.11756]
[1765663037463,1.62716969,3111.6,3111.5,2.11756]
[1765663038157,0.91616969,3111.6,3111.5,2.11756]
[1765663039459,1.72980712,3112.1,3112.0,2.11753]
[1765663039859,2.44080712,3112.1,3112.0,2.11753]
[1765663040163,3.15570712,3112.1,3112.0,0.16063]
[1765663040365,1.4259,3112.1,3112.0,1.66413]
[1765663040560,1.42883554,3112.1,3112.0,1.66413]
[1765663041172,0.71393554,3112.1,3112.0,1.66413]